[Event "Titled Tuesday Blitz March 28 Late 2023"]
[White "Necula, Iulian"]
[Black "Melikhov, Evgeny V."]
[WhiteFideId "1232380"]
[BlackFideId "4122046"]
[WhiteElo "1790"]
[BlackElo "2158"]
[Result "0-1"]
[Round "04"]
[TimeControl "180+2"]
[Date "2023.03.28"]
[WhiteClock "0:00:12"]
[BlackClock "0:00:33"]

1. d4 {[%clk 0:03:00]}  Nf6 {[%clk 0:02:59]} 2. Nc3 {[%clk 0:03:01]}  d5 {[%clk 0:02:59]} 3. Bf4 {[%clk 0:03:01]}  c5 {[%clk 0:02:57]} 4. e3 {[%clk 0:02:59]}  cxd4 {[%clk 0:02:57]} 5. exd4 {[%clk 0:02:59]}  a6 {[%clk 0:02:57]} 6. Nf3 {[%clk 0:02:57]}  Bg4 {[%clk 0:02:52]} 7. Be2 {[%clk 0:02:55]}  Bxf3 {[%clk 0:02:46]} 8. Bxf3 {[%clk 0:02:55]}  Nc6 {[%clk 0:02:46]} 9. O-O {[%clk 0:02:54]}  e6 {[%clk 0:02:46]} 10. h3 {[%clk 0:02:51]}  h6 {[%clk 0:02:45]} 11. Re1 {[%clk 0:02:47]}  Be7 {[%clk 0:02:29]} 12. a3 {[%clk 0:02:44]}  O-O {[%clk 0:02:28]} 13. Ne2 {[%clk 0:02:39]}  Bd6 {[%clk 0:02:27]} 14. Be3 {[%clk 0:02:30]}  Qc7 {[%clk 0:02:24]} 15. Rc1 {[%clk 0:02:22]}  b5 {[%clk 0:02:21]} 16. Qd2 {[%clk 0:02:01]}  Na5 {[%clk 0:02:16]} 17. Qd3 {[%clk 0:01:37]}  Nc4 {[%clk 0:02:12]} 18. Rb1 {[%clk 0:01:19]}  Nxe3 {[%clk 0:02:09]} 19. Qxe3 {[%clk 0:01:19]}  Qxc2 {[%clk 0:02:01]} 20. Rec1 {[%clk 0:01:19]}  Qg6 {[%clk 0:01:59]} 21. Nf4 {[%clk 0:01:06]}  Bxf4 {[%clk 0:01:57]} 22. Qxf4 {[%clk 0:01:07]}  Rfc8 {[%clk 0:01:53]} 23. Qe3 {[%clk 0:00:45]}  Rc2 {[%clk 0:01:44]} 24. Rxc2 {[%clk 0:00:34]}  Qxc2 {[%clk 0:01:43]} 25. Qc1 {[%clk 0:00:35]}  Rc8 {[%clk 0:01:42]} 26. Qxc2 {[%clk 0:00:35]}  Rxc2 {[%clk 0:01:41]} 27. Kf1 {[%clk 0:00:30]}  Kf8 {[%clk 0:01:40]} 28. Ke1 {[%clk 0:00:27]}  Ke7 {[%clk 0:01:40]} 29. b3 {[%clk 0:00:21]}  Kd6 {[%clk 0:01:37]} 30. a4 {[%clk 0:00:21]}  b4 {[%clk 0:01:36]} 31. a5 {[%clk 0:00:20]}  Ra2 {[%clk 0:01:26]} 32. Be2 {[%clk 0:00:18]}  Rxa5 {[%clk 0:01:25]} 33. Rc1 {[%clk 0:00:18]}  Kd7 {[%clk 0:01:20]} 34. f3 {[%clk 0:00:19]}  Ra2 {[%clk 0:01:15]} 35. Rc5 {[%clk 0:00:18]}  Ne8 {[%clk 0:01:03]} 36. g4 {[%clk 0:00:17]}  g5 {[%clk 0:01:02]} 37. Rc1 {[%clk 0:00:15]}  Nd6 {[%clk 0:00:53]} 38. Bd3 {[%clk 0:00:14]}  a5 {[%clk 0:00:46]} 39. Rc2 {[%clk 0:00:11]}  Rxc2 {[%clk 0:00:44]} 40. Bxc2 {[%clk 0:00:12]}  Nb5 {[%clk 0:00:43]} 41. Kd2 {[%clk 0:00:12]}  Nxd4 {[%clk 0:00:43]} 42. Bd1 {[%clk 0:00:11]}  e5 {[%clk 0:00:37]} 43. Kd3 {[%clk 0:00:11]}  Nxf3 {[%clk 0:00:33]} 44. Bxf3 {[%clk 0:00:11]}  e4+ {[%clk 0:00:33]} 45. Bxe4 {[%clk 0:00:11]}  dxe4+ {[%clk 0:00:33]} 46. Kxe4 {[%clk 0:00:12]}  Ke6 {[%clk 0:00:32]} 47. Kd4 {[%clk 0:00:11]}  f5 {[%clk 0:00:32]} 48. gxf5+ {[%clk 0:00:10]}  Kxf5 {[%clk 0:00:32]} 49. Ke3 {[%clk 0:00:09]}  h5 {[%clk 0:00:32]} 50. Kf3 {[%clk 0:00:10]}  g4+ {[%clk 0:00:32]} 51. hxg4+ {[%clk 0:00:10]}  hxg4+ {[%clk 0:00:33]} 52. Kg3 {[%clk 0:00:11]}  Ke4 {[%clk 0:00:32]} 53. Kxg4 {[%clk 0:00:11]}  Kd3 {[%clk 0:00:33]} 54. Kf3 {[%clk 0:00:11]}  Kc3 {[%clk 0:00:33]} 55. Ke2 {[%clk 0:00:12]}  Kxb3 {[%clk 0:00:33]} 56. Kd1 {[%clk 0:00:12]}  Kb2 {[%clk 0:00:33]} 0-1


[Site "https://www.chess.com"]

[Event "Titled Tuesday Blitz March 28 Late 2023"]
[White "Rios Escobar, Adan"]
[Black "Aung Thant Zin"]
[WhiteFideId "3403645"]
[BlackFideId "13000063"]
[WhiteElo "2419"]
[BlackElo "2278"]
[Result "1-0"]
[Round "04"]
[TimeControl "180+2"]
[Date "2023.03.28"]
[WhiteClock "0:00:35"]
[BlackClock "0:00:04"]

1. d4 {[%clk 0:02:57]}  Nf6 {[%clk 0:02:58]} 2. g3 {[%clk 0:02:57]}  e6 {[%clk 0:02:59]} 3. c4 {[%clk 0:02:49]}  d5 {[%clk 0:03:00]} 4. Bg2 {[%clk 0:02:48]}  Be7 {[%clk 0:03:01]} 5. Nf3 {[%clk 0:02:49]}  O-O {[%clk 0:03:01]} 6. O-O {[%clk 0:02:50]}  dxc4 {[%clk 0:03:01]} 7. Qc2 {[%clk 0:02:50]}  a6 {[%clk 0:03:00]} 8. a4 {[%clk 0:02:50]}  Bd7 {[%clk 0:02:59]} 9. Rd1 {[%clk 0:02:51]}  Bc6 {[%clk 0:02:50]} 10. Nc3 {[%clk 0:02:50]}  Bb4 {[%clk 0:02:36]} 11. Bg5 {[%clk 0:02:49]}  h6 {[%clk 0:02:34]} 12. Bxf6 {[%clk 0:02:49]}  Qxf6 {[%clk 0:02:35]} 13. e4 {[%clk 0:02:47]}  Bxc3 {[%clk 0:02:25]} 14. bxc3 {[%clk 0:02:47]}  b5 {[%clk 0:02:24]} 15. d5 {[%clk 0:02:26]}  exd5 {[%clk 0:02:20]} 16. exd5 {[%clk 0:02:26]}  Bb7 {[%clk 0:02:19]} 17. axb5 {[%clk 0:02:27]}  axb5 {[%clk 0:02:19]} 18. Rxa8 {[%clk 0:02:27]}  Bxa8 {[%clk 0:02:19]} 19. Nd4 {[%clk 0:02:28]}  Qb6 {[%clk 0:01:54]} 20. Rb1 {[%clk 0:02:22]}  c6 {[%clk 0:01:53]} 21. dxc6 {[%clk 0:02:22]}  Nxc6 {[%clk 0:01:50]} 22. Nxb5 {[%clk 0:02:11]}  Rb8 {[%clk 0:01:34]} 23. Na3 {[%clk 0:02:11]}  Qa7 {[%clk 0:01:29]} 24. Nxc4 {[%clk 0:01:56]}  Re8 {[%clk 0:01:17]} 25. Nd6 {[%clk 0:01:47]}  Rd8 {[%clk 0:01:06]} 26. Re1 {[%clk 0:01:28]}  g6 {[%clk 0:00:49]} 27. Ne4 {[%clk 0:01:12]}  Kg7 {[%clk 0:00:38]} 28. h4 {[%clk 0:01:03]}  Ne5 {[%clk 0:00:27]} 29. h5 {[%clk 0:01:04]}  Nc4 {[%clk 0:00:20]} 30. hxg6 {[%clk 0:01:00]}  Bxe4 {[%clk 0:00:18]} 31. Qxe4 {[%clk 0:00:54]}  Rd2 {[%clk 0:00:14]} 32. Rf1 {[%clk 0:00:38]}  Nd6 {[%clk 0:00:06]} 33. Qf4 {[%clk 0:00:36]}  fxg6 {[%clk 0:00:04]} 34. Qxd2 {[%clk 0:00:35]} 1-0


[Site "https://www.chess.com"]

[Event "Titled Tuesday Blitz March 28 Late 2023"]
[White "Burke, Paul"]
[Black "Vafin, Ayrat"]
[WhiteFideId "2605767"]
[BlackFideId "4146530"]
[WhiteElo "1957"]
[BlackElo "2317"]
[Result "0-1"]
[Round "04"]
[TimeControl "180+2"]
[Date "2023.03.28"]
[WhiteClock "0:00:56"]
[BlackClock "0:00:55"]

1. e4 {[%clk 0:03:00]}  e5 {[%clk 0:02:57]} 2. Nf3 {[%clk 0:02:57]}  Nf6 {[%clk 0:02:57]} 3. d3 {[%clk 0:02:52]}  Nc6 {[%clk 0:02:57]} 4. Be2 {[%clk 0:02:52]}  d5 {[%clk 0:02:57]} 5. exd5 {[%clk 0:02:52]}  Nxd5 {[%clk 0:02:57]} 6. O-O {[%clk 0:02:52]}  Bc5 {[%clk 0:02:55]} 7. Nc3 {[%clk 0:02:51]}  O-O {[%clk 0:02:54]} 8. Nxd5 {[%clk 0:02:51]}  Qxd5 {[%clk 0:02:54]} 9. c3 {[%clk 0:02:51]}  a5 {[%clk 0:02:53]} 10. Qb3 {[%clk 0:02:51]}  Qd6 {[%clk 0:02:47]} 11. Be3 {[%clk 0:02:49]}  Bg4 {[%clk 0:02:38]} 12. h3 {[%clk 0:02:35]}  Be6 {[%clk 0:02:17]} 13. Qc2 {[%clk 0:02:27]}  Bxe3 {[%clk 0:02:12]} 14. fxe3 {[%clk 0:02:25]}  e4 {[%clk 0:02:11]} 15. dxe4 {[%clk 0:02:17]}  Ne5 {[%clk 0:02:07]} 16. Nd4 {[%clk 0:02:09]}  c5 {[%clk 0:02:05]} 17. Nf5 {[%clk 0:02:02]}  Bxf5 {[%clk 0:02:05]} 18. exf5 {[%clk 0:02:02]}  Qf6 {[%clk 0:02:05]} 19. Rad1 {[%clk 0:01:56]}  a4 {[%clk 0:02:00]} 20. e4 {[%clk 0:01:53]}  h6 {[%clk 0:01:37]} 21. Rd5 {[%clk 0:01:51]}  a3 {[%clk 0:01:27]} 22. b3 {[%clk 0:01:51]}  Rfd8 {[%clk 0:01:16]} 23. Rfd1 {[%clk 0:01:50]}  Rxd5 {[%clk 0:01:08]} 24. Rxd5 {[%clk 0:01:47]}  Re8 {[%clk 0:01:03]} 25. Rxc5 {[%clk 0:01:04]}  Qb6 {[%clk 0:00:59]} 26. b4 {[%clk 0:01:03]}  Nd7 {[%clk 0:00:57]} 27. Qb3 {[%clk 0:00:58]}  Nxc5 {[%clk 0:00:55]} 28. bxc5 {[%clk 0:00:58]}  Qxb3 {[%clk 0:00:54]} 29. axb3 {[%clk 0:00:56]}  a2 {[%clk 0:00:55]} 0-1


[Site "https://www.chess.com"]

[Event "Titled Tuesday Blitz March 28 Late 2023"]
[White "koncheto"]
[Black "Vargas, Mauricio"]
[BlackFideId "4404572"]
[WhiteElo "2473"]
[BlackElo "2025"]
[Result "1-0"]
[Round "04"]
[TimeControl "180+2"]
[Date "2023.03.28"]
[WhiteClock "0:00:12"]
[BlackClock "0:00:08"]

1. e4 {[%clk 0:02:07]}  c5 {[%clk 0:02:54]} 2. Nf3 {[%clk 0:02:04]}  Nc6 {[%clk 0:02:53]} 3. d4 {[%clk 0:02:02]}  cxd4 {[%clk 0:02:53]} 4. Nxd4 {[%clk 0:02:03]}  g6 {[%clk 0:02:52]} 5. c4 {[%clk 0:02:03]}  Bg7 {[%clk 0:02:52]} 6. Be3 {[%clk 0:02:02]}  d6 {[%clk 0:02:48]} 7. Nc3 {[%clk 0:01:56]}  a6 {[%clk 0:02:46]} 8. Be2 {[%clk 0:01:57]}  Nf6 {[%clk 0:02:45]} 9. O-O {[%clk 0:01:57]}  Bd7 {[%clk 0:02:39]} 10. Rc1 {[%clk 0:01:54]}  O-O {[%clk 0:02:39]} 11. Qd2 {[%clk 0:01:50]}  Rc8 {[%clk 0:02:37]} 12. Rfd1 {[%clk 0:01:47]}  Ne5 {[%clk 0:02:37]} 13. b3 {[%clk 0:01:47]}  Neg4 {[%clk 0:02:09]} 14. Bxg4 {[%clk 0:01:46]}  Nxg4 {[%clk 0:02:06]} 15. Bg5 {[%clk 0:01:46]}  h6 {[%clk 0:02:02]} 16. Bh4 {[%clk 0:01:46]}  g5 {[%clk 0:01:55]} 17. Bg3 {[%clk 0:01:45]}  h5 {[%clk 0:01:49]} 18. Qxg5 {[%clk 0:01:40]}  Nf6 {[%clk 0:01:33]} 19. f3 {[%clk 0:01:33]}  Rc5 {[%clk 0:01:32]} 20. Qe3 {[%clk 0:01:32]}  h4 {[%clk 0:01:16]} 21. Bxh4 {[%clk 0:01:24]}  Rh5 {[%clk 0:01:15]} 22. Bg5 {[%clk 0:01:23]}  Qa5 {[%clk 0:01:07]} 23. h4 {[%clk 0:01:15]}  Nh7 {[%clk 0:00:57]} 24. g4 {[%clk 0:00:59]}  Nxg5 {[%clk 0:00:42]} 25. gxh5 {[%clk 0:00:58]}  Nh3+ {[%clk 0:00:41]} 26. Kf1 {[%clk 0:00:49]}  Qxh5 {[%clk 0:00:41]} 27. Nd5 {[%clk 0:00:27]}  Bh6 {[%clk 0:00:33]} 28. f4 {[%clk 0:00:27]}  Qxh4 {[%clk 0:00:22]} 29. Rc3 {[%clk 0:00:19]}  Bg4 {[%clk 0:00:17]} 30. Qg3 {[%clk 0:00:18]}  Qh5 {[%clk 0:00:14]} 31. Rd2 {[%clk 0:00:12]}  Kh7 {[%clk 0:00:14]} 32. Rh2 {[%clk 0:00:12]}  Bxf4 {[%clk 0:00:08]} 33. Nxf4 {[%clk 0:00:12]} 1-0


[Site "https://www.chess.com"]

[Event "Titled Tuesday Blitz March 28 Late 2023"]
[White "Pires, Marcos Vinicius Torsani"]
[Black "Eggleston, Thomas A"]
[WhiteFideId "2118939"]
[BlackFideId "412139"]
[WhiteElo "2273"]
[BlackElo "2155"]
[Result "1-0"]
[Round "04"]
[TimeControl "180+2"]
[Date "2023.03.28"]
[WhiteClock "0:00:21"]
[BlackClock "0:00:01"]

1. d4 {[%clk 0:03:00]}  e6 {[%clk 0:02:59]} 2. Bf4 {[%clk 0:02:58]}  f5 {[%clk 0:02:59]} 3. e3 {[%clk 0:02:58]}  Nf6 {[%clk 0:02:59]} 4. Nf3 {[%clk 0:02:57]}  d5 {[%clk 0:02:58]} 5. c4 {[%clk 0:02:55]}  c6 {[%clk 0:02:54]} 6. Nc3 {[%clk 0:02:55]}  Bd6 {[%clk 0:02:54]} 7. Bd3 {[%clk 0:02:51]}  O-O {[%clk 0:02:53]} 8. O-O {[%clk 0:02:50]}  Ne4 {[%clk 0:02:53]} 9. Qc2 {[%clk 0:02:46]}  a5 {[%clk 0:02:47]} 10. a3 {[%clk 0:02:46]}  Qe7 {[%clk 0:02:44]} 11. Rab1 {[%clk 0:02:41]}  Bd7 {[%clk 0:02:40]} 12. Bxd6 {[%clk 0:02:40]}  Qxd6 {[%clk 0:02:39]} 13. Ne5 {[%clk 0:02:37]}  Be8 {[%clk 0:02:38]} 14. f3 {[%clk 0:02:37]}  Nxc3 {[%clk 0:02:37]} 15. bxc3 {[%clk 0:02:36]}  Ra7 {[%clk 0:02:33]} 16. cxd5 {[%clk 0:02:29]}  cxd5 {[%clk 0:02:27]} 17. c4 {[%clk 0:02:29]}  Nc6 {[%clk 0:02:23]} 18. Rb6 {[%clk 0:02:21]}  Qd8 {[%clk 0:02:11]} 19. Nxc6 {[%clk 0:02:05]}  Bxc6 {[%clk 0:02:10]} 20. Rfb1 {[%clk 0:02:02]}  f4 {[%clk 0:01:54]} 21. Bxh7+ {[%clk 0:01:58]}  Kh8 {[%clk 0:01:52]} 22. cxd5 {[%clk 0:01:45]}  exd5 {[%clk 0:01:43]} 23. Bd3 {[%clk 0:01:34]}  fxe3 {[%clk 0:01:41]} 24. Qe2 {[%clk 0:01:34]}  Qh4 {[%clk 0:01:36]} 25. Qxe3 {[%clk 0:01:31]}  Raa8 {[%clk 0:01:33]} 26. Qf2 {[%clk 0:01:27]}  Qf4 {[%clk 0:01:24]} 27. Kh1 {[%clk 0:01:15]}  Rae8 {[%clk 0:01:21]} 28. Qg3 {[%clk 0:01:03]}  Qxg3 {[%clk 0:01:20]} 29. hxg3 {[%clk 0:01:04]}  Re3 {[%clk 0:01:18]} 30. Bb5 {[%clk 0:00:58]}  Rxa3 {[%clk 0:01:01]} 31. Bxc6 {[%clk 0:00:56]}  bxc6 {[%clk 0:01:01]} 32. Rxc6 {[%clk 0:00:57]}  Ra4 {[%clk 0:00:49]} 33. Rb5 {[%clk 0:00:53]}  Rxd4 {[%clk 0:00:46]} 34. Rxa5 {[%clk 0:00:53]}  Rf5 {[%clk 0:00:37]} 35. g4 {[%clk 0:00:45]}  Rf6 {[%clk 0:00:36]} 36. Rc8+ {[%clk 0:00:40]}  Kh7 {[%clk 0:00:35]} 37. Rd8 {[%clk 0:00:41]}  Rd1+ {[%clk 0:00:31]} 38. Kh2 {[%clk 0:00:41]}  d4 {[%clk 0:00:30]} 39. Rad5 {[%clk 0:00:39]}  Rf4 {[%clk 0:00:27]} 40. Kg3 {[%clk 0:00:37]}  Rf7 {[%clk 0:00:20]} 41. Rxd4 {[%clk 0:00:34]}  Ra1 {[%clk 0:00:15]} 42. R4d5 {[%clk 0:00:33]}  Rc7 {[%clk 0:00:13]} 43. Rh5+ {[%clk 0:00:33]}  Kg6 {[%clk 0:00:13]} 44. Rd6+ {[%clk 0:00:34]}  Kf7 {[%clk 0:00:13]} 45. Rf5+ {[%clk 0:00:35]}  Kg8 {[%clk 0:00:12]} 46. Rd2 {[%clk 0:00:29]}  Re7 {[%clk 0:00:09]} 47. Rfd5 {[%clk 0:00:29]}  Ra3 {[%clk 0:00:07]} 48. Rd8+ {[%clk 0:00:29]}  Kh7 {[%clk 0:00:07]} 49. R8d7 {[%clk 0:00:29]}  Re6 {[%clk 0:00:05]} 50. Rc7 {[%clk 0:00:29]}  Rb6 {[%clk 0:00:05]} 51. Rdd7 {[%clk 0:00:28]}  Rg6 {[%clk 0:00:05]} 52. Rd5 {[%clk 0:00:29]}  Ra2 {[%clk 0:00:03]} 53. Rc8 {[%clk 0:00:26]}  Rh6 {[%clk 0:00:01]} 54. Rb8 {[%clk 0:00:22]}  Rh1 {[%clk 0:00:01]} 55. Rh5+ {[%clk 0:00:21]} 1-0


[Site "https://www.chess.com"]

[Event "Titled Tuesday Blitz March 28 Late 2023"]
[White "Bongo Akanga Ndjila, Barthelemy"]
[Black "Figorito, Nick"]
[WhiteFideId "10609431"]
[BlackFideId "30923689"]
[WhiteElo "1768"]
[BlackElo "2338"]
[Result "1-0"]
[Round "04"]
[TimeControl "180+2"]
[Date "2023.03.28"]
[WhiteClock "0:00:44"]
[BlackClock "0:00:31"]

1. d4 {[%clk 0:03:00]}  Nf6 {[%clk 0:02:59]} 2. c4 {[%clk 0:03:00]}  g6 {[%clk 0:03:00]} 3. Nc3 {[%clk 0:02:58]}  d5 {[%clk 0:03:00]} 4. Nf3 {[%clk 0:02:57]}  Bg7 {[%clk 0:03:00]} 5. Bf4 {[%clk 0:02:57]}  O-O {[%clk 0:02:59]} 6. e3 {[%clk 0:02:56]}  c5 {[%clk 0:02:59]} 7. dxc5 {[%clk 0:02:56]}  Qa5 {[%clk 0:03:00]} 8. Be2 {[%clk 0:02:55]}  dxc4 {[%clk 0:03:00]} 9. Bxc4 {[%clk 0:02:52]}  Qxc5 {[%clk 0:03:01]} 10. Be2 {[%clk 0:02:51]}  Nc6 {[%clk 0:02:59]} 11. O-O {[%clk 0:02:51]}  Rd8 {[%clk 0:03:00]} 12. Qc1 {[%clk 0:02:42]}  Bf5 {[%clk 0:02:50]} 13. Rd1 {[%clk 0:02:40]}  Rxd1+ {[%clk 0:02:49]} 14. Qxd1 {[%clk 0:02:40]}  Rd8 {[%clk 0:02:50]} 15. Qc1 {[%clk 0:02:38]}  Ne4 {[%clk 0:02:41]} 16. Na4 {[%clk 0:02:21]}  Qxc1+ {[%clk 0:02:42]} 17. Rxc1 {[%clk 0:02:21]}  Nd2 {[%clk 0:02:21]} 18. b3 {[%clk 0:01:56]}  Bg4 {[%clk 0:02:01]} 19. Nc5 {[%clk 0:01:51]}  Na5 {[%clk 0:01:27]} 20. Bc7 {[%clk 0:01:41]}  Nxf3+ {[%clk 0:01:18]} 21. gxf3 {[%clk 0:01:35]}  Rd2 {[%clk 0:01:16]} 22. Bxa5 {[%clk 0:01:31]}  Rxa2 {[%clk 0:01:11]} 23. Bb4 {[%clk 0:01:24]}  Bh3 {[%clk 0:01:00]} 24. Nxb7 {[%clk 0:01:17]}  Bb2 {[%clk 0:00:57]} 25. Rd1 {[%clk 0:01:14]}  Bf6 {[%clk 0:00:47]} 26. Bf1 {[%clk 0:01:11]}  Be6 {[%clk 0:00:46]} 27. Nc5 {[%clk 0:01:10]}  Bf5 {[%clk 0:00:44]} 28. e4 {[%clk 0:01:09]}  Be6 {[%clk 0:00:43]} 29. Nxe6 {[%clk 0:01:07]}  fxe6 {[%clk 0:00:44]} 30. Bc4 {[%clk 0:01:07]}  Kf7 {[%clk 0:00:44]} 31. Rd7 {[%clk 0:01:03]}  Bh4 {[%clk 0:00:44]} 32. Be1 {[%clk 0:00:52]}  Ra1 {[%clk 0:00:39]} 33. Kf1 {[%clk 0:00:52]}  Ra2 {[%clk 0:00:39]} 34. b4 {[%clk 0:00:50]}  Rc2 {[%clk 0:00:40]} 35. Be2 {[%clk 0:00:49]}  Ra2 {[%clk 0:00:35]} 36. b5 {[%clk 0:00:48]}  Bf6 {[%clk 0:00:31]} 37. Bc4 {[%clk 0:00:45]}  Be5 {[%clk 0:00:31]} 38. Bxa2 {[%clk 0:00:44]} 1-0


[Site "https://www.chess.com"]

[Event "Titled Tuesday Blitz March 28 Late 2023"]
[White "Golubev, Mikhail"]
[Black "Osmonbekov, Talaibek"]
[WhiteFideId "14100983"]
[BlackFideId "2017253"]
[WhiteElo "2374"]
[BlackElo "2135"]
[Result "1-0"]
[Round "04"]
[TimeControl "180+2"]
[Date "2023.03.28"]
[WhiteClock "0:00:16"]
[BlackClock "0:00:02"]

1. e4 {[%clk 0:02:52]}  c5 {[%clk 0:03:00]} 2. Nf3 {[%clk 0:02:51]}  d6 {[%clk 0:03:00]} 3. d4 {[%clk 0:02:51]}  cxd4 {[%clk 0:03:01]} 4. Nxd4 {[%clk 0:02:51]}  Nf6 {[%clk 0:03:02]} 5. Nc3 {[%clk 0:02:51]}  g6 {[%clk 0:03:02]} 6. Be3 {[%clk 0:02:50]}  Bg7 {[%clk 0:03:01]} 7. f3 {[%clk 0:02:51]}  O-O {[%clk 0:03:01]} 8. Qd2 {[%clk 0:02:51]}  Nc6 {[%clk 0:03:02]} 9. Bc4 {[%clk 0:02:50]}  Bd7 {[%clk 0:02:58]} 10. h4 {[%clk 0:02:45]}  Rc8 {[%clk 0:02:52]} 11. Nxc6 {[%clk 0:02:36]}  Bxc6 {[%clk 0:02:36]} 12. Bb3 {[%clk 0:02:22]}  h5 {[%clk 0:02:15]} 13. O-O-O {[%clk 0:02:17]}  b5 {[%clk 0:02:11]} 14. Bh6 {[%clk 0:01:37]}  a5 {[%clk 0:01:50]} 15. Qg5 {[%clk 0:01:13]}  Kh7 {[%clk 0:01:49]} 16. Bxg7 {[%clk 0:01:13]}  Kxg7 {[%clk 0:01:50]} 17. e5 {[%clk 0:01:09]}  a4 {[%clk 0:01:05]} 18. Bxf7 {[%clk 0:01:03]}  Rxf7 {[%clk 0:01:02]} 19. exf6+ {[%clk 0:01:03]}  exf6 {[%clk 0:00:55]} 20. Qf4 {[%clk 0:01:01]}  b4 {[%clk 0:00:53]} 21. Qxb4 {[%clk 0:00:57]}  Rb8 {[%clk 0:00:41]} 22. Rxd6 {[%clk 0:00:30]}  Qe8 {[%clk 0:00:17]} 23. Qd4 {[%clk 0:00:29]}  a3 {[%clk 0:00:13]} 24. b3 {[%clk 0:00:28]}  Bd7 {[%clk 0:00:11]} 25. Ne4 {[%clk 0:00:27]}  Qe5 {[%clk 0:00:06]} 26. Rxd7 {[%clk 0:00:24]}  Rxd7 {[%clk 0:00:03]} 27. Qxd7+ {[%clk 0:00:24]}  Kh8 {[%clk 0:00:02]} 28. c3 {[%clk 0:00:22]}  f5 {[%clk 0:00:02]} 29. Qd6 {[%clk 0:00:16]} 1-0


[Site "https://www.chess.com"]

[Event "Titled Tuesday Blitz March 28 Late 2023"]
[White "Dahlgren, James Allen"]
[Black "sissahungrychess"]
[WhiteFideId "22256873"]
[WhiteElo "2192"]
[BlackElo "2391"]
[Result "1-0"]
[Round "04"]
[TimeControl "180+2"]
[Date "2023.03.28"]
[WhiteClock "0:01:39"]
[BlackClock "0:00:37"]

1. e4 {[%clk 0:02:59]}  c5 {[%clk 0:03:00]} 2. Nc3 {[%clk 0:02:58]}  Nc6 {[%clk 0:03:00]} 3. g3 {[%clk 0:02:58]}  g6 {[%clk 0:02:59]} 4. Bg2 {[%clk 0:02:58]}  Bg7 {[%clk 0:02:59]} 5. Nge2 {[%clk 0:02:58]}  d6 {[%clk 0:02:59]} 6. O-O {[%clk 0:02:58]}  Nf6 {[%clk 0:02:59]} 7. d3 {[%clk 0:02:59]}  O-O {[%clk 0:03:00]} 8. f4 {[%clk 0:02:59]}  Rb8 {[%clk 0:03:00]} 9. h3 {[%clk 0:02:58]}  Nd7 {[%clk 0:02:59]} 10. Be3 {[%clk 0:02:57]}  b5 {[%clk 0:02:57]} 11. Qd2 {[%clk 0:02:55]}  b4 {[%clk 0:02:56]} 12. Nd1 {[%clk 0:02:56]}  Nd4 {[%clk 0:02:54]} 13. Nxd4 {[%clk 0:02:55]}  cxd4 {[%clk 0:02:55]} 14. Bf2 {[%clk 0:02:54]}  a5 {[%clk 0:02:50]} 15. a4 {[%clk 0:02:54]}  Nc5 {[%clk 0:02:45]} 16. b3 {[%clk 0:02:53]}  Bd7 {[%clk 0:02:42]} 17. g4 {[%clk 0:02:53]}  Qc7 {[%clk 0:02:42]} 18. Bg3 {[%clk 0:02:52]}  Rbc8 {[%clk 0:02:41]} 19. Nf2 {[%clk 0:02:47]}  Bc6 {[%clk 0:02:40]} 20. g5 {[%clk 0:02:44]}  Nd7 {[%clk 0:02:10]} 21. Ng4 {[%clk 0:02:42]}  f5 {[%clk 0:02:04]} 22. Nh6+ {[%clk 0:02:38]}  Kh8 {[%clk 0:02:04]} 23. Rf2 {[%clk 0:02:34]}  e5 {[%clk 0:02:01]} 24. fxe5 {[%clk 0:02:31]}  dxe5 {[%clk 0:01:56]} 25. exf5 {[%clk 0:02:30]}  Bxg2 {[%clk 0:01:55]} 26. Kxg2 {[%clk 0:02:21]}  Bxh6 {[%clk 0:01:44]} 27. gxh6 {[%clk 0:02:22]}  Rxf5 {[%clk 0:01:44]} 28. Raf1 {[%clk 0:02:06]}  Rcf8 {[%clk 0:01:38]} 29. Qg5 {[%clk 0:02:00]}  Qc6+ {[%clk 0:00:41]} 30. Kg1 {[%clk 0:01:49]}  Qf6 {[%clk 0:00:38]} 31. Rxf5 {[%clk 0:01:42]}  Qxf5 {[%clk 0:00:37]} 32. Rxf5 {[%clk 0:01:39]} 1-0


[Site "https://www.chess.com"]